fUSD/lending_fUSD_20250106
["ID","MTS","AMOUNT","RATE_DAILY","PERIOD"]
[347819011,1736130636355,-10372.7195416,0.00011792,2]
[347819012,1736130636364,-360.86717615,0.00011797,3]
[347819013,1736130636373,-500.0,0.00011797,2]
[347819014,1736130636383,-1000.0,0.00011797,2]
[347819015,1736130636392,-500.0,0.00011797,2]
[347819016,1736130636401,-500.0,0.00011797,2]
[347819017,1736130636410,-753.18,0.00011797,2]
[347819018,1736130636419,-567.26,0.00011797,2]
[347819019,1736130636431,-3333.48,0.00011797,2]
[347819020,1736130636442,-500.0,0.00011797,2]
[347819021,1736130636451,-637.57,0.00011797,2]
[347819022,1736130636460,-500.0,0.00011797,2]
[347819023,1736130636470,-1931.58,0.00011797,2]
[347819024,1736130636480,-500.0,0.00011797,2]
[347819025,1736130636490,-500.0,0.00011797,2]
[347819026,1736130636499,-566.41,0.00011797,2]
[347819027,1736130636509,-51842.88219094,0.00011798,2]
[347819028,1736130636518,-132278.60798431,0.00011798,2]
[347819029,1736130636534,-121205.00004136,0.00011798,2]
[347819030,1736130636545,-30712.24198474,0.00011798,2]
[347819031,1736130636597,2000.0,0.00012356,30]
[347819032,1736130636672,2000.0,0.00012356,30]
[347819033,1736130636743,2000.0,0.00012356,30]
[347819034,1736130636790,2000.0,0.00012356,30]
[347819035,1736130636840,2000.0,0.00012356,30]
[347819036,1736130636895,2000.0,0.00012356,30]
[347819037,1736130636971,2000.0,0.00012356,30]
[347819050,1736130637864,-286.49996773,0.00011696,2]
[347819051,1736130637876,-213.50003227,0.00011696,2]
[347819052,1736130637885,-567.19672715,0.00011798,2]
[347819053,1736130637896,-348.23005832,0.00011798,2]
[347819055,1736130637907,-7040.0,0.00011798,2]
[347819058,1736130637974,-823.83122224,0.00011798,2]
[347819059,1736130637986,-2229.47957476,0.00011798,2]
[347819060,1736130637998,-362.49999,0.00011798,2]
[347819061,1736130638009,-61946.50768095,0.00011798,2]
[347819062,1736130638021,-81788.54046483,0.00011798,2]
[347819063,1736130638033,-1008.83789344,0.00011798,2]
[347819064,1736130638045,-1886.29854042,0.00011798,2]
[347819065,1736130638083,-18367.35906512,0.00011798,2]
[347819066,1736130638095,-968.41857821,0.00011798,2]
[347819067,1736130638106,-281399.45285546,0.00011798,2]
[347819068,1736130638117,-35378.3193439,0.00011798,2]
[347819069,1736130638187,-3923.57682562,0.00011798,2]
[347819070,1736130638197,-1454.24614478,0.00011798,2]
[347819071,1736130638208,-458.44268602,0.00011798,2]
[347819072,1736130638219,-3338.45242994,0.00011798,2]
[347819073,1736130638230,-38045.73602392,0.00011798,2]
[347819074,1736130638244,-54779.19395908,0.00011798,2]
[347819078,1736130638433,-2023.55,0.00011798,2]
[347819079,1736130638447,-832.10495352,0.00011798,2]
[347819080,1736130638458,-33003.54350681,0.00011798,2]
[347819082,1736130640101,-1201.82029884,0.00011798,2]
[347819083,1736130640216,-8119.69,0.00011798,2]
[347819084,1736130640347,-445.8,0.00011798,2]
[347819085,1736130640359,-269.25611,0.00011798,2]
[347819086,1736130640370,-306.46,0.00011798,2]
[347819087,1736130640381,-333.592,0.00011798,2]
[347819094,1736130642938,2000.0,0.00012356,30]
[347819098,1736130642968,-1401.73919642,0.00011696,2]
[347819100,1736130642979,-332.71918515,0.00011696,2]
[347819101,1736130642991,-285.268048,0.00011696,2]
[347819103,1736130643073,-106.10357043,0.00011696,2]
[347819104,1736130643082,-240.96047691,0.00011798,2]
[347819105,1736130643094,-6583.79937943,0.00011798,2]
[347819106,1736130643104,-455.31999994,0.00011798,2]
[347819107,1736130643175,-539.8,0.00011798,2]
[347819108,1736130643248,2000.0,0.00012356,30]
[347819114,1736130643549,2000.0,0.00012356,30]
[347819115,1736130643851,2000.0,0.00012356,30]
[347819116,1736130644147,2000.0,0.00012356,30]
[347819117,1736130644463,2000.0,0.00012356,30]
[347819118,1736130644933,2000.0,0.00012356,30]
[347819119,1736130645224,2000.0,0.00012356,30]
[347819120,1736130645552,2000.0,0.00012356,30]
[347819122,1736130645998,-548.22,0.00011696,2]
[347819123,1736130646007,-24.04268118,0.00011798,2]
[347819124,1736130646099,-99094.6756169,0.00011798,2]
[347819125,1736130646110,-4007.87421711,0.00011798,2]
[347819126,1736130646121,-1128.4415647,0.00011798,2]
[347819127,1736130646203,-1151.4223584,0.00011798,2]
[347819134,1736130646516,-3628.99362848,0.00011798,2]
[347819923,1736131560589,2048.82927271,0.0002,120]
[347820001,1736131832259,-500.0,8.22e-05,2]
[347820003,1736131832269,-186.42423863,8.478e-05,2]
[347820006,1736131832283,-324.80576137,8.478e-05,2]
[347820008,1736131832293,-304.7,0.00010238,2]
[347820010,1736131832302,-40.87227996,0.00010264,2]
[347820014,1736131832442,-354.90772004,0.00010264,2]
[347820015,1736131832452,-250.0,0.00010302,2]
[347820016,1736131832461,-760.08801956,0.00010302,2]
[347820017,1736131832471,-250.0,0.00010326,2]
[347820018,1736131832479,-300.0,0.00010439,2]
[347820019,1736131832488,-20688.92,0.0001044,2]
[347820020,1736131832497,-1000.0,0.00010544,2]
[347820021,1736131832507,-177.81666444,0.00010603,2]
[347820022,1736131832516,-150.0,0.00010603,2]
[347820023,1736131832526,-252.57738237,0.00010603,2]
[347820024,1736131832535,-162.10728334,0.00010603,2]
[347820025,1736131832544,-165.37,0.00010616,2]
[347820026,1736131832553,-1528.83,0.00010679,2]
[347820027,1736131832562,-250.0,0.00010686,2]
[347820028,1736131832572,-568.01,0.00010741,2]
[347820029,1736131832581,-511.23,0.00010742,2]
[347820030,1736131832590,-167.05,0.00010819,2]
[347820031,1736131832599,-150.0,0.00010959,2]
[347820032,1736131832610,-500.0,0.0001096,2]
[347820033,1736131832619,-400.0,0.00010986,2]
[347820034,1736131832629,-618.0,0.00010986,2]
[347820035,1736131832639,-172.0,0.00011,2]
[347820036,1736131832648,-550.0,0.00011,2]
[347820037,1736131832657,-21640.76957992,0.00011173,2]
[347820038,1736131832666,-207.1981696,0.00011175,2]
[347820039,1736131832675,-207.1981696,0.00011176,2]
[347820040,1736131832684,-21640.76957992,0.00011176,2]
[347820041,1736131832694,-207.1981696,0.0001118,2]
[347820042,1736131832703,-21640.76957992,0.00011182,2]
[347820043,1736131832713,-207.1981696,0.00011184,2]
[347820044,1736131832722,-207.1981696,0.00011188,2]
[347820045,1736131832731,-21640.76957992,0.00011189,2]
[347820046,1736131832740,-207.1981696,0.00011194,2]
[347820047,1736131832749,-21640.76957992,0.00011194,2]
[347820048,1736131832759,-21640.76957992,0.00011197,2]
[347820049,1736131832768,-200.0,0.00011198,2]
[347820050,1736131832777,-398.215,0.0001121,2]
[347820051,1736131832787,-1523.01,0.00011253,2]
[347820052,1736131832795,-500.0,0.00011264,2]
[347820053,1736131832805,-501.40653175,0.00011264,2]
[347820054,1736131832813,-500.0,0.00011264,2]
[347820055,1736131832822,-187.314182,0.00011331,2]
[347820056,1736131832831,-150.0,0.00011344,2]
[347820057,1736131832841,-14505.37359107,0.00011345,2]
[347820058,1736131832850,-1476.41,0.00011477,2]
[347820059,1736131832862,-420.0,0.00011478,2]
[347820060,1736131832871,-880.0,0.00011479,2]
[347820061,1736131832880,-300.63,0.00011479,2]
[347820062,1736131832889,-248.13,0.00011479,2]
[347820063,1736131832899,-244.26,0.00011479,2]
[347820064,1736131832908,-368.47,0.00011479,2]
[347820065,1736131832917,-356.63,0.00011479,2]
[347820066,1736131832926,-182.88,0.00011479,2]
[347820067,1736131832939,-182.88,0.00011479,2]
[347820068,1736131832948,-182.67,0.00011479,2]
[347820069,1736131832957,-644.8633546,0.00011562,2]
[347820070,1736131832966,-1496.36,0.00011567,2]
[347820071,1736131832975,-892.9074,0.00011596,2]
[347820072,1736131832985,-870.1311,0.00011597,2]
[347820073,1736131832994,-7768.16058137,0.00011599,2]
[347820074,1736131833004,-1496.56,0.00011655,2]
[347820075,1736131833014,-282.71054259,0.00011676,2]
[347820076,1736131833024,-75680.17806665,0.00011694,3]
[347820077,1736131833034,-500.0,0.00011695,2]
[347820078,1736131833044,-500.0,0.00011695,2]
[347820079,1736131833054,-700.06,0.00011695,2]
[347820080,1736131833064,-1358.48,0.00011695,2]
[347820081,1736131833074,-500.0,0.00011695,2]
[347820082,1736131833084,-500.0,0.00011695,2]
[347820083,1736131833094,-500.0,0.00011695,2]
[347820084,1736131833105,-500.0,0.00011695,2]
[347820085,1736131833115,-500.0,0.00011695,2]
[347820086,1736131833124,-500.0,0.00011695,2]
[347820087,1736131833134,-759.15,0.00011695,2]
[347820088,1736131833144,-500.0,0.00011695,2]
[347820089,1736131833154,-500.0,0.00011695,2]
[347820090,1736131833164,-800.72,0.00011695,2]
[347820091,1736131833173,-500.0,0.00011695,2]
[347820092,1736131833183,-500.0,0.00011695,2]
[347820093,1736131833193,-500.0,0.00011695,2]
[347820094,1736131833203,-500.0,0.00011695,2]
[347820095,1736131833213,-500.0,0.00011695,2]
[347820096,1736131833222,-1692.66,0.00011695,2]
[347820097,1736131833232,-500.0,0.00011695,2]
[347820098,1736131833242,-500.0,0.00011695,2]
[347820099,1736131833252,-652.16,0.00011695,2]
[347820100,1736131833261,-640.42,0.00011695,2]
[347820101,1736131833271,-500.0,0.00011695,2]
[347820102,1736131833280,-500.0,0.00011695,2]
[347820103,1736131833290,-500.0,0.00011695,2]
[347820104,1736131833299,-500.0,0.00011695,2]
[347820105,1736131833309,-500.0,0.00011695,2]
[347820106,1736131833319,-163.21319959,0.00011695,2]
[347820107,1736131833329,-540.64,0.00011695,2]
[347820108,1736131833339,-500.0,0.00011695,2]
[347820109,1736131833349,-2311.61,0.00011695,2]
[347820110,1736131833363,-500.0,0.00011695,2]
[347820111,1736131833373,-500.0,0.00011696,2]
[347820112,1736131833383,-500.0,0.00011696,2]
[347820113,1736131833394,-500.0,0.00011696,2]
[347820114,1736131833404,-500.0,0.00011696,2]
[347820115,1736131833414,-505.43888186,0.00011696,2]
[347820116,1736131833424,-534.34709388,0.00011696,2]
[347820117,1736131833434,-500.0,0.00011696,2]
[347820118,1736131833444,-550.58476493,0.00011696,2]
[347820119,1736131833454,-508.56711051,0.00011696,2]
[347820120,1736131833464,-500.0,0.00011696,2]
[347820121,1736131833474,-508.60558585,0.00011696,2]
[347820122,1736131833485,-527.59211588,0.00011696,2]
[347820123,1736131833495,-500.0,0.00011696,2]
[347820124,1736131833505,-506.02401464,0.00011696,2]
[347820125,1736131833514,-500.0,0.00011696,2]
[347820126,1736131833524,-512.0472357,0.00011696,2]
[347820127,1736131833534,-500.0,0.00011696,2]
[347820128,1736131833544,-586.11841025,0.00011696,2]
[347820129,1736131833555,-500.0,0.00011696,2]
[347820130,1736131833565,-505.9800125,0.00011696,2]
[347820131,1736131833575,-504.81271713,0.00011696,2]
[347820132,1736131833584,-500.0,0.00011696,2]
[347820133,1736131833594,-500.0,0.00011696,2]
[347820134,1736131833606,-500.0,0.00011696,2]
[347820135,1736131833616,-500.0,0.00011696,2]
[347820136,1736131833626,-500.0,0.00011696,2]
[347820137,1736131833636,-500.0,0.00011696,2]
[347820138,1736131833646,-500.0,0.00011696,2]
[347820139,1736131833656,-505.34349366,0.00011696,2]
[347820140,1736131833665,-501.86701556,0.00011696,2]
[347820141,1736131833676,-500.0,0.00011696,2]
[347820142,1736131833686,-500.0,0.00011696,2]
[347820143,1736131833695,-167.26203265,0.00011696,2]
[347820144,1736131833705,-504.90617645,0.00011696,2]
[347820145,1736131833714,-501.71680242,0.00011696,2]
[347820146,1736131833724,-520.24859599,0.00011696,2]
[347820147,1736131833733,-500.0,0.00011696,2]
[347820148,1736131833744,-502.72744503,0.00011696,2]
[347820149,1736131833753,-505.07867709,0.00011696,2]
[347820150,1736131833763,-500.0,0.00011696,2]
[347820151,1736131833772,-500.0,0.00011696,2]
[347820152,1736131833782,-501.34806369,0.00011696,2]
[347820153,1736131833791,-500.0,0.00011696,2]
[347820154,1736131833801,-504.22967894,0.00011696,2]
[347820155,1736131833810,-502.46514666,0.00011696,2]
[347820156,1736131833820,-500.0,0.00011696,2]
[347820157,1736131833830,-500.0,0.00011696,2]
[347820158,1736131833839,-500.0,0.00011696,2]
[347820159,1736131833849,-506.66404553,0.00011696,2]
[347820160,1736131833859,-500.0,0.00011696,2]
[347820161,1736131834077,-500.0,0.00011696,2]
[347820162,1736131834089,-500.0,0.00011696,2]
[347820163,1736131834099,-500.0,0.00011696,2]
[347820164,1736131834109,-500.0,0.00011696,2]
[347820165,1736131834119,-513.27436111,0.00011696,2]
[347820166,1736131834128,-505.12082893,0.00011696,2]
[347820167,1736131834138,-566.72269235,0.00011696,2]
[347820168,1736131834148,-500.0,0.00011696,2]
[347820169,1736131834157,-506.63770181,0.00011696,2]
[347820170,1736131834167,-500.0,0.00011696,2]
[347820171,1736131834176,-504.89048461,0.00011696,2]
[347820172,1736131834185,-500.0,0.00011696,2]
[347820173,1736131834195,-503.01879467,0.00011696,2]
[347820174,1736131834204,-500.0,0.00011696,2]
[347820175,1736131834213,-500.0,0.00011696,2]
[347820176,1736131834223,-500.0,0.00011696,2]
[347820177,1736131834233,-502.52377916,0.00011696,2]
[347820178,1736131834242,-500.0,0.00011696,2]
[347820179,1736131834253,-503.68143416,0.00011696,2]
[347820180,1736131834263,-503.97492324,0.00011696,2]
[347820181,1736131834272,-500.0,0.00011696,2]
[347820182,1736131834282,-500.0,0.00011696,2]
[347820183,1736131834291,-500.0,0.00011696,2]
[347820184,1736131834301,-500.0,0.00011696,2]
[347820185,1736131834311,-500.0,0.00011696,2]
[347820186,1736131834321,-500.0,0.00011696,2]
[347820187,1736131834330,-500.0,0.00011696,2]
[347820188,1736131834340,-500.0,0.00011696,2]
[347820189,1736131834350,-501.17316414,0.00011696,2]
[347820190,1736131834361,-500.0,0.00011696,2]
[347820191,1736131834371,-500.0,0.00011696,2]
[347820192,1736131834382,-500.0,0.00011696,2]
[347820193,1736131834393,-500.0,0.00011696,2]
[347820194,1736131834403,-500.0,0.00011696,2]
[347820195,1736131834413,-500.0,0.00011696,2]
[347820196,1736131834423,-503.0792057,0.00011696,2]
[347820197,1736131834432,-500.0,0.00011696,2]
[347820198,1736131834442,-503.27471842,0.00011696,2]
[347820199,1736131834452,-337.03794704,0.00011696,2]
[347820200,1736131834461,-501.68107857,0.00011696,2]
[347820201,1736131834471,-500.0,0.00011696,2]
[347820202,1736131834481,-500.0,0.00011696,2]
[347820203,1736131834491,-503.42137609,0.00011696,2]
[347820204,1736131834501,-500.0,0.00011696,2]
[347820205,1736131834510,-634.76141881,0.00011696,2]
[347820206,1736131834519,-501.58285313,0.00011696,2]
[347820207,1736131834529,-500.0,0.00011696,2]
[347820208,1736131834538,-501.61504056,0.00011696,2]
[347820209,1736131834548,-500.0,0.00011696,2]
[347820210,1736131834558,-502.11579603,0.00011696,2]
[347820211,1736131834567,-500.0,0.00011696,2]
[347820212,1736131834576,-501.33464343,0.00011696,2]
[347820213,1736131834585,-500.0,0.00011696,2]
[347820214,1736131834595,-500.87662346,0.00011696,2]
[347820215,1736131834604,-501.23138385,0.00011696,2]
[347820216,1736131834614,-506.9756661,0.00011696,2]
[347820217,1736131834623,-447.75579897,0.00011696,2]
[347820218,1736131834632,-500.0,0.00011696,2]
[347820219,1736131834642,-500.0,0.00011696,2]
[347820220,1736131834651,-500.0,0.00011696,2]
[347820221,1736131834660,-500.0,0.00011696,2]
[347820222,1736131834670,-185.03206241,0.00011696,2]
[347820223,1736131834681,-500.0,0.00011696,2]
[347820224,1736131834690,-508.67029028,0.00011696,2]
[347820225,1736131834699,-502.59539582,0.00011696,2]
[347820226,1736131834708,-500.0,0.00011696,2]
[347820227,1736131834718,-500.0,0.00011696,2]
[347820228,1736131834728,-500.0,0.00011696,2]
[347820229,1736131834737,-500.0,0.00011696,2]
[347820230,1736131834747,-500.0,0.00011696,2]
[347820231,1736131834757,-500.0,0.00011696,2]
[347820232,1736131834766,-500.0,0.00011696,2]
[347820233,1736131834775,-500.0,0.00011696,2]
[347820234,1736131834784,-500.0,0.00011696,2]
[347820235,1736131834794,-374.62024214,0.00011696,2]
[347820236,1736131834804,-500.0,0.00011696,2]
[347820237,1736131834813,-500.0,0.00011696,2]
[347820238,1736131834822,-500.0,0.00011696,2]
[347820239,1736131834831,-424.12541242,0.00011696,2]
[347820240,1736131834841,-500.0,0.00011696,2]
[347820241,1736131834851,-500.0,0.00011696,2]
[347820242,1736131834861,-510.74939006,0.00011696,2]
[347820243,1736131834871,-500.0,0.00011696,2]
[347820244,1736131834880,-500.0,0.00011696,2]
[347820245,1736131834890,-500.0,0.00011696,2]
[347820246,1736131834900,-500.0,0.00011696,2]
[347820247,1736131834909,-500.0,0.00011696,2]
[347820248,1736131834919,-500.0,0.00011696,2]
[347820249,1736131834928,-500.0,0.00011696,2]
[347820250,1736131834941,-500.0,0.00011696,2]
[347820251,1736131834951,-500.0,0.00011696,2]
[347820252,1736131834960,-500.0,0.00011696,2]
[347820253,1736131834970,-500.0,0.00011696,2]
[347820254,1736131834979,-500.0,0.00011696,2]
[347820255,1736131834989,-500.0,0.00011696,2]
[347820256,1736131834999,-500.0,0.00011696,2]
[347820257,1736131835009,-500.0,0.00011696,2]
[347820258,1736131835019,-500.0,0.00011696,2]
[347820259,1736131835028,-500.0,0.00011696,2]
[347820260,1736131835037,-504.05633171,0.00011696,2]
[347820261,1736131835047,-500.0,0.00011696,2]
[347820262,1736131835057,-500.0,0.00011696,2]
[347820263,1736131835066,-634.03,0.00011696,2]
[347820264,1736131835076,-500.0,0.00011696,2]
[347820265,1736131835086,-500.0,0.00011696,2]
[347820266,1736131835095,-500.0,0.00011696,2]
[347820267,1736131835106,-500.0,0.00011696,2]
[347820268,1736131835116,-500.0,0.00011696,2]
[347820269,1736131835126,-500.0,0.00011696,2]
[347820270,1736131835137,-500.0,0.00011696,2]
[347820271,1736131835146,-500.0,0.00011696,2]
[347820272,1736131835156,-500.0,0.00011696,2]
[347820273,1736131835166,-500.0,0.00011696,2]
[347820274,1736131835175,-1000.0,0.00011696,2]
[347820275,1736131835185,-500.0,0.00011696,2]
[347820276,1736131835195,-500.0,0.00011696,2]
[347820277,1736131835205,-854.25,0.00011696,2]
[347820278,1736131835214,-653.48,0.00011696,2]
[347820279,1736131835224,-500.0,0.00011697,2]
[347820280,1736131835234,-500.0,0.00011697,2]
[347820281,1736131835243,-500.0,0.00011697,2]
[347820282,1736131835252,-544.58,0.00011697,2]
[347820283,1736131835262,-1562.7,0.00011697,2]
[347820284,1736131835271,-500.0,0.00011697,2]
[347820285,1736131835280,-500.0,0.00011697,2]
[347820286,1736131835290,-500.0,0.00011697,2]
[347820287,1736131835299,-629.44,0.00011697,2]
[347820288,1736131835309,-500.0,0.00011697,2]
[347820289,1736131835318,-500.0,0.00011697,2]
[347820290,1736131835328,-500.0,0.00011697,2]
[347820291,1736131835337,-500.0,0.00011697,2]
[347820292,1736131835346,-2144.74,0.00011697,2]
[347820293,1736131835357,-500.0,0.00011697,2]
[347820294,1736131835366,-500.0,0.00011697,2]
[347820295,1736131835376,-500.0,0.00011697,2]
[347820296,1736131835386,-538.40200088,0.00011697,2]
[347820297,1736131835395,-500.0,0.00011697,2]
[347820298,1736131835404,-224.2393334,0.00011697,2]
[347820299,1736131835413,-500.0,0.00011697,2]
[347820300,1736131835422,-500.0,0.00011697,2]
[347820301,1736131835432,-500.0,0.00011697,2]
[347820302,1736131835441,-500.0,0.00011697,2]
[347820303,1736131835450,-739.58,0.00011697,2]
[347820304,1736131835460,-500.0,0.00011697,2]
[347820305,1736131835469,-500.0,0.00011697,2]
[347820306,1736131835478,-500.0,0.00011697,2]
[347820307,1736131835487,-500.0,0.00011697,2]
[347820308,1736131835497,-500.0,0.00011697,2]
[347820309,1736131835507,-500.0,0.00011697,2]
[347820310,1736131835516,-595.56184525,0.00011697,2]
[347820311,1736131835525,-500.0,0.00011697,2]
[347820312,1736131835534,-500.0,0.00011697,2]
[347820313,1736131835543,-618.92,0.00011697,2]
[347820314,1736131835554,-1122.38,0.00011697,2]
[347820315,1736131835563,-500.0,0.00011697,2]
[347820316,1736131835572,-500.0,0.00011697,2]
[347820317,1736131835581,-500.0,0.00011697,2]
[347820318,1736131835590,-500.0,0.00011697,2]
[347820319,1736131835600,-500.0,0.00011697,2]
[347820320,1736131835610,-500.0,0.00011697,2]
[347820321,1736131835619,-500.0,0.00011697,2]
[347820322,1736131835629,-500.0,0.00011697,2]
[347820323,1736131835638,-500.0,0.00011697,2]
[347820324,1736131835647,-500.0,0.00011697,2]
[347820325,1736131835657,-500.0,0.00011697,2]
[347820326,1736131835666,-500.0,0.00011697,2]
[347820327,1736131835676,-500.0,0.00011697,2]
[347820328,1736131835685,-643.47,0.00011697,2]
[347820329,1736131835695,-500.0,0.00011697,2]
[347820330,1736131835704,-500.0,0.00011697,2]
[347820331,1736131835713,-500.0,0.00011697,2]
[347820332,1736131835722,-357.645701,0.00011697,2]
[347820333,1736131835731,-1841.52,0.00011697,2]
[347820334,1736131835740,-500.0,0.00011697,2]
[347820335,1736131835749,-500.0,0.00011697,2]
[347820336,1736131835759,-500.0,0.00011697,2]
[347820337,1736131835768,-320.996096,0.00011697,2]
[347820338,1736131835777,-500.0,0.00011697,2]
[347820339,1736131835786,-500.0,0.00011697,2]
[347820340,1736131835795,-500.0,0.00011697,2]
[347820341,1736131835804,-500.0,0.00011697,2]
[347820342,1736131835813,-376.8761348,0.00011697,2]
[347820343,1736131835823,-500.0,0.00011697,2]
[347820344,1736131835832,-607.38,0.00011697,2]
[347820345,1736131835841,-331.38037408,0.00011697,2]
[347820346,1736131835850,-500.0,0.00011697,2]
[347820347,1736131835862,-500.0,0.00011697,2]
[347820348,1736131835872,-500.0,0.00011697,2]
[347820349,1736131835882,-500.0,0.00011697,2]
[347820350,1736131835891,-500.0,0.00011697,2]
[347820351,1736131835900,-550.50678291,0.00011697,2]
[347820352,1736131835909,-500.0,0.00011697,2]
[347820353,1736131835918,-500.0,0.00011697,2]
[347820354,1736131835927,-500.0,0.00011697,2]
[347820355,1736131835940,-500.0,0.00011697,2]
[347820356,1736131835949,-1151.02,0.00011697,2]
[347820357,1736131835959,-1441.71,0.00011697,2]
[347820358,1736131835968,-500.0,0.00011697,2]
[347820359,1736131835978,-500.0,0.00011697,2]
[347820360,1736131835987,-500.0,0.00011697,2]
[347820361,1736131835997,-515.74629928,0.00011697,2]
[347820362,1736131836007,-500.0,0.00011697,2]
[347820363,1736131836016,-500.0,0.00011697,2]
[347820364,1736131836026,-500.0,0.00011697,2]
[347820365,1736131836035,-500.0,0.00011697,2]
[347820366,1736131836045,-500.0,0.00011697,2]
[347820367,1736131836054,-508.48151512,0.00011697,2]
[347820368,1736131836063,-1325.7,0.00011697,2]
[347820369,1736131836072,-500.0,0.00011697,2]
[347820370,1736131836081,-500.0,0.00011697,2]
[347820371,1736131836092,-1413.4,0.00011697,2]
[347820372,1736131836102,-500.0,0.00011697,2]
[347820373,1736131836112,-500.0,0.00011697,2]
[347820374,1736131836121,-500.0,0.00011697,2]
[347820375,1736131836130,-577.22202372,0.00011697,2]
[347820376,1736131836140,-1544.94,0.00011697,2]
[347820377,1736131836149,-500.0,0.00011697,2]
[347820378,1736131836158,-500.0,0.00011697,2]
[347820379,1736131836167,-500.0,0.00011697,2]
[347820380,1736131836177,-500.0,0.00011697,2]
[347820381,1736131836187,-500.0,0.00011697,2]
[347820382,1736131836196,-3567.34,0.00011697,2]
[347820383,1736131836205,-989.58,0.00011697,2]
[347820384,1736131836214,-500.0,0.00011697,2]
[347820385,1736131836224,-500.0,0.00011697,2]
[347820386,1736131836233,-500.0,0.00011697,2]
[347820387,1736131836243,-505.89757282,0.00011697,2]
[347820388,1736131836252,-500.0,0.00011697,2]
[347820389,1736131836261,-500.0,0.00011697,2]
[347820390,1736131836271,-500.0,0.00011697,2]
[347820391,1736131836280,-500.0,0.00011697,2]
[347820392,1736131836289,-500.0,0.00011697,2]
[347820393,1736131836299,-455.61666562,0.00011697,2]
[347820394,1736131836308,-500.0,0.00011697,2]
[347820395,1736131836317,-500.0,0.00011697,2]
[347820396,1736131836327,-500.0,0.00011697,2]
[347820397,1736131836336,-500.0,0.00011697,2]
[347820398,1736131836346,-500.0,0.00011697,2]
[347820399,1736131836356,-500.0,0.00011697,2]
[347820400,1736131836365,-500.0,0.00011697,2]
[347820401,1736131836374,-500.0,0.00011697,2]
[347820402,1736131836384,-500.0,0.00011697,2]
[347820403,1736131836393,-500.0,0.00011697,2]
[347820404,1736131836403,-500.0,0.00011697,2]
[347820405,1736131836412,-500.0,0.00011697,2]
[347820406,1736131836421,-6660.20860975,0.00011697,2]
[347820407,1736131836431,-500.0,0.00011697,2]
[347820408,1736131836440,-500.0,0.00011697,2]
[347820409,1736131836449,-500.0,0.00011697,2]
[347820410,1736131836458,-500.0,0.00011697,2]
[347820411,1736131836467,-500.0,0.00011697,2]
[347820412,1736131836476,-598.75,0.00011697,2]
[347820413,1736131836485,-500.0,0.00011697,2]
[347820414,1736131836494,-500.0,0.00011697,2]
[347820415,1736131836503,-500.0,0.00011697,2]
[347820416,1736131836512,-506.3290102,0.00011697,2]
[347820417,1736131836521,-500.0,0.00011697,2]
[347820418,1736131836530,-500.0,0.00011697,2]
[347820419,1736131836539,-540.36,0.00011697,2]
[347820420,1736131836548,-500.0,0.00011697,2]
[347820421,1736131836557,-500.0,0.00011697,2]
[347820422,1736131836566,-500.0,0.00011697,2]
[347820423,1736131836575,-500.0,0.00011697,2]
[347820424,1736131836585,-882.52,0.00011697,2]
[347820425,1736131836595,-500.0,0.00011697,2]